[Event "*** Titled Tuesday Blitz"]
[Site "Chess.com"]
[Date "2020.12.01"]
[Round "2"]
[White "Beca95"]
[Black "Lion-Al-Messi"]
[Result "0-1"]
[WhiteElo "2903"]
[BlackElo "2575"]
[TimeControl "180+1"]
[EndTime "10:19:41 PST"]
[Termination "Lion-Al-Messi won by resignation"]

1. e4 {[%clk 0:03:00]} 1... b6 {[%clk 0:02:58.9]} 2. c4 {[%clk 0:02:53.1]} 2...
Bb7 {[%clk 0:02:57.4]} 3. Nc3 {[%clk 0:02:52.1]} 3... e5 {[%clk 0:02:56.6]} 4.
d3 {[%clk 0:02:48.7]} 4... Bc5 {[%clk 0:02:48.3]} 5. g3 {[%clk 0:02:34.1]} 5...
c6 {[%clk 0:02:43.9]} 6. Bg2 {[%clk 0:02:31.1]} 6... Ne7 {[%clk 0:02:40.6]} 7.
Nge2 {[%clk 0:02:23.3]} 7... O-O {[%clk 0:02:34.9]} 8. O-O {[%clk 0:02:11.9]}
8... d5 {[%clk 0:02:34.7]} 9. exd5 {[%clk 0:01:46.5]} 9... cxd5 {[%clk
0:02:34.1]} 10. d4 {[%clk 0:01:45.5]} 10... exd4 {[%clk 0:02:28.7]} 11. Nxd4
{[%clk 0:01:45.6]} 11... Qd7 {[%clk 0:01:56.3]} 12. Nb3 {[%clk 0:01:21.8]} 12...
d4 {[%clk 0:01:37.9]} 13. Ne4 {[%clk 0:01:13.8]} 13... Bxe4 {[%clk 0:01:07]} 14.
Bxe4 {[%clk 0:01:05.1]} 14... Nbc6 {[%clk 0:01:07.1]} 15. Bf4 {[%clk 0:00:43.2]}
15... Rad8 {[%clk 0:01:06.2]} 16. Qh5 {[%clk 0:00:20.5]} 16... f5 {[%clk
0:01:04.9]} 17. Bd3 {[%clk 0:00:20.7]} 17... Ng6 {[%clk 0:01:02.8]} 18. Bg5
{[%clk 0:00:20.4]} 18... Rde8 {[%clk 0:00:52.2]} 19. Rad1 {[%clk 0:00:19.3]}
19... Nge5 {[%clk 0:00:38.3]} 20. Bf4 {[%clk 0:00:16.7]} 20... g6 {[%clk
0:00:34.9]} 21. Qe2 {[%clk 0:00:15.4]} 21... Kg7 {[%clk 0:00:16.8]} 22. Rfe1
{[%clk 0:00:15.1]} 22... Nxc4 {[%clk 0:00:10.4]} 23. Qc2 {[%clk 0:00:15.2]}
23... N4e5 {[%clk 0:00:09.9]} 24. Bb5 {[%clk 0:00:12.3]} 24... Nf3+ {[%clk
0:00:09.7]} 25. Kf1 {[%clk 0:00:09.4]} 25... Nxe1 {[%clk 0:00:09.5]} 26. Rxe1
{[%clk 0:00:09.2]} 26... Rxe1+ {[%clk 0:00:10.4]} 27. Kxe1 {[%clk 0:00:10]}
27... Re8+ {[%clk 0:00:10.2]} 28. Kf1 {[%clk 0:00:10.2]} 28... Qe6 {[%clk
0:00:09.2]} 29. Bd3 {[%clk 0:00:07.5]} 29... Qe1+ {[%clk 0:00:08.7]} 30. Kg2
{[%clk 0:00:07.5]} 30... Ne5 {[%clk 0:00:08.3]} 31. Bxe5+ {[%clk 0:00:07.4]}
31... Qxe5 {[%clk 0:00:07.8]} 32. Nd2 {[%clk 0:00:07.7]} 32... Qd5+ {[%clk
0:00:07.8]} 33. Nf3 {[%clk 0:00:07.9]} 33... g5 {[%clk 0:00:06.3]} 34. Bxf5
{[%clk 0:00:07.7]} 34... Rf8 {[%clk 0:00:05.7]} 35. g4 {[%clk 0:00:07.8]} 35...
h5 {[%clk 0:00:04.4]} 36. h3 {[%clk 0:00:08]} 36... hxg4 {[%clk 0:00:05]} 37.
hxg4 {[%clk 0:00:08.9]} 37... Rh8 {[%clk 0:00:05.2]} 38. Qd3 {[%clk 0:00:08.6]}
38... Qd6 {[%clk 0:00:05.4]} 39. a3 {[%clk 0:00:07.4]} 39... Qh6 {[%clk
0:00:05.5]} 40. Ng1 {[%clk 0:00:06]} 40... Qh2+ {[%clk 0:00:05.6]} 41. Kf1
{[%clk 0:00:06.3]} 41... Re8 {[%clk 0:00:05.7]} 42. b4 {[%clk 0:00:06.5]} 42...
Bd6 {[%clk 0:00:05.2]} 43. Qxd4+ {[%clk 0:00:06.6]} 43... Be5 {[%clk 0:00:05.5]}
44. Qd7+ {[%clk 0:00:06.3]} 44... Kf8 {[%clk 0:00:05.9]} 45. Bg6 {[%clk
0:00:06.6]} 45... Re7 {[%clk 0:00:05.7]} 46. Qd8+ {[%clk 0:00:06.7]} 46... Kg7
{[%clk 0:00:06.1]} 47. Qxe7+ {[%clk 0:00:07.1]} 47... Kxg6 {[%clk 0:00:06.7]}
48. Qe6+ {[%clk 0:00:06.4]} 48... Bf6 {[%clk 0:00:06.9]} 49. Nf3 {[%clk
0:00:06.3]} 49... Qf4 {[%clk 0:00:06.6]} 50. Qe2 {[%clk 0:00:04.6]} 50... Qc1+
{[%clk 0:00:06.2]} 51. Kg2 {[%clk 0:00:04.8]} 51... Qxa3 {[%clk 0:00:06.7]} 52.
Qe4+ {[%clk 0:00:05.2]} 52... Kg7 {[%clk 0:00:07]} 53. Qb7+ {[%clk 0:00:04.5]}
53... Kg6 {[%clk 0:00:06.9]} 54. Qe4+ {[%clk 0:00:05.1]} 54... Kg7 {[%clk
0:00:07.1]} 55. Nd2 {[%clk 0:00:05.5]} 55... Qc3 {[%clk 0:00:06.8]} 56. Nf1
{[%clk 0:00:04.4]} 56... Qe5 {[%clk 0:00:06.7]} 57. Qb7+ {[%clk 0:00:04.3]}
57... Kg6 {[%clk 0:00:06.8]} 58. Ne3 {[%clk 0:00:03.9]} 58... Qf4 {[%clk
0:00:06.4]} 59. Qd5 {[%clk 0:00:03.7]} 59... Kg7 {[%clk 0:00:06.5]} 60. Qd7+
{[%clk 0:00:03.9]} 60... Kg6 {[%clk 0:00:06.6]} 61. b5 {[%clk 0:00:04.5]} 61...
Qe4+ {[%clk 0:00:06.6]} 62. Kg1 {[%clk 0:00:05]} 62... Qb1+ {[%clk 0:00:06.6]}
63. Kg2 {[%clk 0:00:05.6]} 63... Qe4+ {[%clk 0:00:07]} 64. Kf1 {[%clk
0:00:06.2]} 64... Qb1+ {[%clk 0:00:07.1]} 65. Ke2 {[%clk 0:00:06.8]} 65... Qb2+
{[%clk 0:00:07.2]} 66. Kf3 {[%clk 0:00:07.2]} 66... Qe5 {[%clk 0:00:07.1]} 67.
Qd3+ {[%clk 0:00:07.7]} 67... Kg7 {[%clk 0:00:06.9]} 68. Nf5+ {[%clk 0:00:07.7]}
68... Kf7 {[%clk 0:00:06.2]} 69. Qd7+ {[%clk 0:00:07.7]} 69... Kg6 {[%clk
0:00:06.5]} 70. Qb7 {[%clk 0:00:07.1]} 70... Qf4+ {[%clk 0:00:06.7]} 71. Ke2
{[%clk 0:00:06]} 71... Qxg4+ {[%clk 0:00:07.2]} 72. f3 {[%clk 0:00:06.5]} 72...
Qxf5 {[%clk 0:00:07.4]} 73. Qc6 {[%clk 0:00:06.8]} 73... Qe5+ {[%clk 0:00:07.6]}
74. Kf1 {[%clk 0:00:07.2]} 74... Qa1+ {[%clk 0:00:07.5]} 75. Kg2 {[%clk
0:00:07.1]} 75... Qb2+ {[%clk 0:00:08.1]} 76. Kh3 {[%clk 0:00:07.6]} 76... Qe5
{[%clk 0:00:07.9]} 77. Kg2 {[%clk 0:00:07.8]} 77... Qc5 {[%clk 0:00:07.8]} 78.
Qe8+ {[%clk 0:00:07.8]} 78... Kg7 {[%clk 0:00:07.6]} 79. Qd7+ {[%clk 0:00:08.3]}
79... Qe7 {[%clk 0:00:08.2]} 80. Qc6 {[%clk 0:00:08.8]} 80... Be5 {[%clk
0:00:08.3]} 81. Kh3 {[%clk 0:00:08.7]} 81... Bf4 {[%clk 0:00:08.3]} 82. Kg4
{[%clk 0:00:08.3]} 82... Qf7 {[%clk 0:00:08.1]} 83. Qc3+ {[%clk 0:00:08.3]}
83... Qf6 {[%clk 0:00:08]} 84. Qc4 {[%clk 0:00:08.6]} 84... Kg6 {[%clk 0:00:08]}
85. Qe4+ {[%clk 0:00:08.7]} 85... Kh6 {[%clk 0:00:08.3]} 86. Qd5 {[%clk
0:00:07.9]} 86... Qg6 {[%clk 0:00:07.9]} 87. Qc6 {[%clk 0:00:07.5]} 87... Qxc6
{[%clk 0:00:07.7]} 88. bxc6 {[%clk 0:00:07.8]} 88... a5 {[%clk 0:00:08.3]} 0-1

[Event "*** Titled Tuesday Blitz"]
[Site "Chess.com"]
[Date "2020.12.01"]
[Round "2"]
[White "LionTheLeon_06"]
[Black "StockholmMissile"]
[Result "1/2-1/2"]
[WhiteElo "2631"]
[BlackElo "2363"]
[TimeControl "180+1"]
[EndTime "10:19:46 PST"]
[Termination "Game drawn by stalemate"]

1. b3 {[%clk 0:03:00.7]} 1... e5 {[%clk 0:02:58.2]} 2. Bb2 {[%clk 0:03:00.4]}
2... Nc6 {[%clk 0:02:58.7]} 3. e3 {[%clk 0:03:00.6]} 3... Nf6 {[%clk 0:02:58.8]}
4. Bb5 {[%clk 0:02:59.6]} 4... e4 {[%clk 0:02:58.8]} 5. d3 {[%clk 0:02:40.7]}
5... a6 {[%clk 0:02:36]} 6. Bxc6 {[%clk 0:02:40.2]} 6... bxc6 {[%clk 0:02:20.5]}
7. dxe4 {[%clk 0:02:36.6]} 7... Nxe4 {[%clk 0:02:19]} 8. Nf3 {[%clk 0:02:36.9]}
8... Bb4+ {[%clk 0:02:12.7]} 9. c3 {[%clk 0:02:37]} 9... Be7 {[%clk 0:02:10.5]}
10. O-O {[%clk 0:02:37.2]} 10... O-O {[%clk 0:02:09.7]} 11. c4 {[%clk
0:02:36.5]} 11... Bf6 {[%clk 0:02:08.4]} 12. Qc2 {[%clk 0:02:30.9]} 12... Bxb2
{[%clk 0:02:06.5]} 13. Qxb2 {[%clk 0:02:31.8]} 13... Qf6 {[%clk 0:02:06.5]} 14.
Qxf6 {[%clk 0:02:29.1]} 14... Nxf6 {[%clk 0:02:05.8]} 15. Nc3 {[%clk 0:02:29]}
15... d6 {[%clk 0:02:04.2]} 16. c5 {[%clk 0:02:27.1]} 16... Bg4 {[%clk 0:01:37]}
17. Nd2 {[%clk 0:02:11.1]} 17... Rfd8 {[%clk 0:01:27.4]} 18. Nc4 {[%clk
0:01:59.2]} 18... a5 {[%clk 0:01:03.2]} 19. Rac1 {[%clk 0:01:33.9]} 19... Be6
{[%clk 0:00:53.5]} 20. Na4 {[%clk 0:01:29.3]} 20... Ne4 {[%clk 0:00:49.9]} 21.
f3 {[%clk 0:01:26]} 21... Bxc4 {[%clk 0:00:46.9]} 22. bxc4 {[%clk 0:01:25.7]}
22... Nxc5 {[%clk 0:00:40.4]} 23. Nxc5 {[%clk 0:01:25.9]} 23... dxc5 {[%clk
0:00:41.3]} 24. Rfd1 {[%clk 0:01:26.3]} 24... Kf8 {[%clk 0:00:35]} 25. Kf2
{[%clk 0:01:18.8]} 25... Ke7 {[%clk 0:00:34.3]} 26. Ke2 {[%clk 0:01:18.7]} 26...
Rab8 {[%clk 0:00:33.2]} 27. Rxd8 {[%clk 0:01:17.5]} 27... Kxd8 {[%clk
0:00:32.8]} 28. Rc2 {[%clk 0:01:13.7]} 28... Rb1 {[%clk 0:00:29.4]} 29. g4
{[%clk 0:01:09.9]} 29... Rh1 {[%clk 0:00:26.3]} 30. Kd3 {[%clk 0:01:09.8]} 30...
Rf1 {[%clk 0:00:24.8]} 31. Ke4 {[%clk 0:01:09.9]} 31... Rd1 {[%clk 0:00:20.7]}
32. Kf4 {[%clk 0:01:08.7]} 32... Ke7 {[%clk 0:00:20.1]} 33. h4 {[%clk
0:01:08.9]} 33... Kd7 {[%clk 0:00:17.6]} 34. h5 {[%clk 0:01:05.8]} 34... h6
{[%clk 0:00:17.5]} 35. e4 {[%clk 0:01:02.6]} 35... Ke6 {[%clk 0:00:17.4]} 36.
Rg2 {[%clk 0:00:43]} 36... Rc1 {[%clk 0:00:15.2]} 37. g5 {[%clk 0:00:42.5]}
37... Rxc4 {[%clk 0:00:14.9]} 38. gxh6 {[%clk 0:00:41.9]} 38... gxh6 {[%clk
0:00:15.8]} 39. Rg8 {[%clk 0:00:42.2]} 39... Kf6 {[%clk 0:00:13.5]} 40. Rc8
{[%clk 0:00:40.4]} 40... Ra4 {[%clk 0:00:10.4]} 41. Rxc7 {[%clk 0:00:40.6]}
41... Rxa2 {[%clk 0:00:10.4]} 42. Rxc6+ {[%clk 0:00:41.1]} 42... Kg7 {[%clk
0:00:11.1]} 43. Rxc5 {[%clk 0:00:41.6]} 43... a4 {[%clk 0:00:11]} 44. Ra5 {[%clk
0:00:41.9]} 44... a3 {[%clk 0:00:10.9]} 45. Kf5 {[%clk 0:00:42.3]} 45... Ra1
{[%clk 0:00:10.1]} 46. Kf4 {[%clk 0:00:39.6]} 46... a2 {[%clk 0:00:07.6]} 47.
Ra6 {[%clk 0:00:40]} 47... Rh1 {[%clk 0:00:02.9]} 48. Rxa2 {[%clk 0:00:37.5]}
48... Rxh5 {[%clk 0:00:03.4]} 49. Ra6 {[%clk 0:00:37.1]} 49... Rg5 {[%clk
0:00:03.6]} 50. e5 {[%clk 0:00:36.8]} 50... Rh5 {[%clk 0:00:03.7]} 51. Ra7
{[%clk 0:00:36.9]} 51... Rh4+ {[%clk 0:00:03.6]} 52. Kf5 {[%clk 0:00:36.8]}
52... Rh5+ {[%clk 0:00:03.6]} 53. Ke4 {[%clk 0:00:37.4]} 53... Kg6 {[%clk
0:00:03.5]} 54. f4 {[%clk 0:00:37.9]} 54... Rh1 {[%clk 0:00:03.5]} 55. Ra6+
{[%clk 0:00:38.5]} 55... Kg7 {[%clk 0:00:03.6]} 56. Kf5 {[%clk 0:00:39.2]} 56...
Rh5+ {[%clk 0:00:03.2]} 57. Kg4 {[%clk 0:00:39.1]} 57... Rh1 {[%clk 0:00:03.6]}
58. Ra7 {[%clk 0:00:39.7]} 58... Rg1+ {[%clk 0:00:03.7]} 59. Kf5 {[%clk
0:00:39.9]} 59... Re1 {[%clk 0:00:02.6]} 60. Ra2 {[%clk 0:00:38.8]} 60... Re3
{[%clk 0:00:02.3]} 61. Rg2+ {[%clk 0:00:39]} 61... Kf8 {[%clk 0:00:02.4]} 62.
Kf6 {[%clk 0:00:39.6]} 62... Rf3 {[%clk 0:00:01.2]} 63. Rg4 {[%clk 0:00:38.4]}
63... Ra3 {[%clk 0:00:02.1]} 64. Rh4 {[%clk 0:00:37.9]} 64... Ra4 {[%clk
0:00:02.1]} 65. Kf5 {[%clk 0:00:36.4]} 65... Ra6 {[%clk 0:00:02]} 66. Rh1 {[%clk
0:00:36.1]} 66... Re6 {[%clk 0:00:02.4]} 67. Rg1 {[%clk 0:00:35.1]} 67... Rc6
{[%clk 0:00:01.9]} 68. Rg2 {[%clk 0:00:35]} 68... Re6 {[%clk 0:00:02.3]} 69. Rc2
{[%clk 0:00:35.2]} 69... Rg6 {[%clk 0:00:02.2]} 70. Rh2 {[%clk 0:00:31.9]} 70...
Kg7 {[%clk 0:00:02.5]} 71. Rh1 {[%clk 0:00:31.5]} 71... Re6 {[%clk 0:00:02.7]}
72. Kg4 {[%clk 0:00:30.2]} 72... Rg6+ {[%clk 0:00:02.6]} 73. Kf5 {[%clk
0:00:29.7]} 73... Re6 {[%clk 0:00:02.7]} 74. Ra1 {[%clk 0:00:29.5]} 74... Rg6
{[%clk 0:00:02.4]} 75. Ra7 {[%clk 0:00:28.6]} 75... Re6 {[%clk 0:00:02.7]} 76.
Rb7 {[%clk 0:00:27.8]} 76... Rg6 {[%clk 0:00:02.7]} 77. Ke4 {[%clk 0:00:28.4]}
77... h5 {[%clk 0:00:02.6]} 78. Rb3 {[%clk 0:00:22.2]} 78... h4 {[%clk
0:00:02.8]} 79. Rh3 {[%clk 0:00:22.4]} 79... Rh6 {[%clk 0:00:03]} 80. Kf5 {[%clk
0:00:22.9]} 80... Rh5+ {[%clk 0:00:02.9]} 81. Kg4 {[%clk 0:00:22.8]} 81... Kg6
{[%clk 0:00:03.3]} 82. Rxh4 {[%clk 0:00:23.3]} 82... Rxh4+ {[%clk 0:00:01.6]}
83. Kxh4 {[%clk 0:00:24.2]} 83... Kf5 {[%clk 0:00:02.1]} 84. Kg3 {[%clk
0:00:24.9]} 84... f6 {[%clk 0:00:02.5]} 85. exf6 {[%clk 0:00:25.6]} 85... Kxf6
{[%clk 0:00:03]} 86. Kg4 {[%clk 0:00:26.5]} 86... Kg6 {[%clk 0:00:03.5]} 87. Kf3
{[%clk 0:00:27.4]} 87... Kf5 {[%clk 0:00:03.5]} 88. Ke3 {[%clk 0:00:28.3]} 88...
Kf6 {[%clk 0:00:03.4]} 89. Ke4 {[%clk 0:00:29.2]} 89... Ke6 {[%clk 0:00:03.8]}
90. f5+ {[%clk 0:00:29.9]} 90... Kf6 {[%clk 0:00:04.3]} 91. Kf4 {[%clk
0:00:30.7]} 91... Kf7 {[%clk 0:00:04.5]} 92. Kg4 {[%clk 0:00:31.6]} 92... Kf6
{[%clk 0:00:04.6]} 93. Kf4 {[%clk 0:00:32]} 93... Kf7 {[%clk 0:00:05]} 94. Kg5
{[%clk 0:00:32.9]} 94... Kg7 {[%clk 0:00:05.4]} 95. f6+ {[%clk 0:00:33.2]} 95...
Kf7 {[%clk 0:00:05.9]} 96. Kf5 {[%clk 0:00:34]} 96... Kf8 {[%clk 0:00:05.9]} 97.
Kg6 {[%clk 0:00:34.9]} 97... Kg8 {[%clk 0:00:06.2]} 98. Kg5 {[%clk 0:00:35.8]}
98... Kf7 {[%clk 0:00:06.2]} 99. Kf5 {[%clk 0:00:36.6]} 99... Kf8 {[%clk
0:00:06.4]} 100. Ke6 {[%clk 0:00:37]} 100... Ke8 {[%clk 0:00:06.5]} 101. f7+
{[%clk 0:00:37.6]} 101... Kf8 {[%clk 0:00:06.7]} 102. Kf6 {[%clk 0:00:38.5]}
1/2-1/2

[Event "*** Titled Tuesday Blitz"]
[Site "Chess.com"]
[Date "2020.12.01"]
[Round "2"]
[White "akanga001"]
[Black "serhanberat_ozdemir"]
[Result "0-1"]
[WhiteElo "1945"]
[BlackElo "2342"]
[TimeControl "180+1"]
[EndTime "10:20:08 PST"]
[Termination "serhanberat_ozdemir won on time"]

1. d4 {[%clk 0:02:54.4]} 1... Nf6 {[%clk 0:02:59.4]} 2. c4 {[%clk 0:02:53.9]}
2... g6 {[%clk 0:02:59.8]} 3. Nc3 {[%clk 0:02:53.3]} 3... Bg7 {[%clk 0:03:00.4]}
4. e4 {[%clk 0:02:52.4]} 4... d6 {[%clk 0:03:00.9]} 5. h3 {[%clk 0:02:50.1]}
5... O-O {[%clk 0:02:59.3]} 6. Nf3 {[%clk 0:02:50.2]} 6... c5 {[%clk 0:02:59.6]}
7. d5 {[%clk 0:02:48.6]} 7... e6 {[%clk 0:03:00.1]} 8. Be2 {[%clk 0:02:44.9]}
8... exd5 {[%clk 0:03:00.3]} 9. cxd5 {[%clk 0:02:44.3]} 9... Re8 {[%clk
0:02:59.5]} 10. Nd2 {[%clk 0:02:44]} 10... a6 {[%clk 0:02:53.4]} 11. a4 {[%clk
0:02:42.8]} 11... Nbd7 {[%clk 0:02:32.1]} 12. O-O {[%clk 0:02:41.1]} 12... h6
{[%clk 0:01:55.2]} 13. Qc2 {[%clk 0:02:37.9]} 13... Nh7 {[%clk 0:01:53.4]} 14.
Nc4 {[%clk 0:02:33.8]} 14... Ne5 {[%clk 0:01:52.2]} 15. Bf4 {[%clk 0:02:27.8]}
15... Nxc4 {[%clk 0:01:31.1]} 16. Bxc4 {[%clk 0:02:25.9]} 16... Ng5 {[%clk
0:01:16.8]} 17. Rae1 {[%clk 0:02:17.9]} 17... Bxh3 {[%clk 0:01:10.6]} 18. Bxg5
{[%clk 0:02:16.7]} 18... Qxg5 {[%clk 0:01:11.5]} 19. f4 {[%clk 0:02:14.5]} 19...
Qg3 {[%clk 0:00:46.2]} 20. Kh1 {[%clk 0:01:54.1]} 20... Bg4 {[%clk 0:00:42.1]}
21. Qf2 {[%clk 0:01:40.8]} 21... Qxf2 {[%clk 0:00:39.9]} 22. Rxf2 {[%clk
0:01:40.7]} 22... Bd4 {[%clk 0:00:38.1]} 23. Rd2 {[%clk 0:01:26.6]} 23... Re7
{[%clk 0:00:26.4]} 24. Bd3 {[%clk 0:01:20.8]} 24... Rae8 {[%clk 0:00:25.6]} 25.
Ne2 {[%clk 0:01:20.3]} 25... Bxe2 {[%clk 0:00:25.6]} 26. Rexe2 {[%clk
0:01:19.5]} 26... Kg7 {[%clk 0:00:23.2]} 27. b3 {[%clk 0:01:09.4]} 27... g5
{[%clk 0:00:20]} 28. fxg5 {[%clk 0:01:08.3]} 28... hxg5 {[%clk 0:00:20.9]} 29.
Kh2 {[%clk 0:01:06.8]} 29... Be5+ {[%clk 0:00:19.8]} 30. g3 {[%clk 0:01:04.8]}
30... Kg6 {[%clk 0:00:18.1]} 31. Kh3 {[%clk 0:01:03.1]} 31... Bc3 {[%clk
0:00:14.6]} 32. Rc2 {[%clk 0:01:01.1]} 32... Be5 {[%clk 0:00:13.2]} 33. Kg4
{[%clk 0:01:00.7]} 33... Rh8 {[%clk 0:00:13.3]} 34. Rh2 {[%clk 0:00:55.5]} 34...
Ree8 {[%clk 0:00:10.6]} 35. Rcf2 {[%clk 0:00:53]} 35... Rxh2 {[%clk 0:00:07.4]}
36. Rxh2 {[%clk 0:00:52.2]} 36... Rb8 {[%clk 0:00:08.3]} 37. a5 {[%clk
0:00:47.2]} 37... b6 {[%clk 0:00:08.4]} 38. Bxa6 {[%clk 0:00:45]} 38... bxa5
{[%clk 0:00:08.7]} 39. Bc4 {[%clk 0:00:41.7]} 39... Rb4 {[%clk 0:00:09]} 40. Ra2
{[%clk 0:00:41.1]} 40... Rb8 {[%clk 0:00:04]} 41. Rxa5 {[%clk 0:00:40.9]} 41...
Rh8 {[%clk 0:00:04.4]} 42. Ra2 {[%clk 0:00:39]} 42... Rh1 {[%clk 0:00:04.4]} 43.
Rg2 {[%clk 0:00:38.6]} 43... Rd1 {[%clk 0:00:03.3]} 44. Rf2 {[%clk 0:00:31.9]}
44... Rd4 {[%clk 0:00:03.2]} 45. Re2 {[%clk 0:00:29.7]} 45... f5+ {[%clk
0:00:03.3]} 46. Kf3 {[%clk 0:00:27.7]} 46... g4+ {[%clk 0:00:03.7]} 47. Kg2
{[%clk 0:00:26.2]} 47... fxe4 {[%clk 0:00:03.2]} 48. Kf2 {[%clk 0:00:20.4]}
48... Rd1 {[%clk 0:00:02.9]} 49. Rxe4 {[%clk 0:00:19.5]} 49... Bd4+ {[%clk
0:00:03.3]} 50. Ke2 {[%clk 0:00:18.7]} 50... Rc1 {[%clk 0:00:01.4]} 51. Rxg4+
{[%clk 0:00:18.2]} 51... Kf5 {[%clk 0:00:02.3]} 52. Rf4+ {[%clk 0:00:17.8]}
52... Ke5 {[%clk 0:00:03.2]} 53. Rh4 {[%clk 0:00:17.2]} 53... Rc2+ {[%clk
0:00:03.7]} 54. Kd3 {[%clk 0:00:16.1]} 54... Rc3+ {[%clk 0:00:03.1]} 55. Kd2
{[%clk 0:00:16.3]} 55... Rxg3 {[%clk 0:00:04]} 56. Rh5+ {[%clk 0:00:16.3]} 56...
Ke4 {[%clk 0:00:04]} 57. Rh4+ {[%clk 0:00:15.8]} 57... Kf3 {[%clk 0:00:03.3]}
58. Rh5 {[%clk 0:00:14.2]} 58... Be5 {[%clk 0:00:03]} 59. Rf5+ {[%clk 0:00:13]}
59... Ke4 {[%clk 0:00:03.7]} 60. Rf7 {[%clk 0:00:12.1]} 60... Rg2+ {[%clk
0:00:04.1]} 61. Ke1 {[%clk 0:00:09.1]} 61... Ke3 {[%clk 0:00:03.4]} 62. Kf1
{[%clk 0:00:07.8]} 62... Rh2 {[%clk 0:00:02.7]} 63. Kg1 {[%clk 0:00:07.7]} 63...
Rb2 {[%clk 0:00:02.6]} 64. Rf1 {[%clk 0:00:05.7]} 64... Kd4 {[%clk 0:00:02.7]}
65. Kh1 {[%clk 0:00:04.1]} 65... Kc3 {[%clk 0:00:03.6]} 66. Rc1+ {[%clk
0:00:03.9]} 66... Kb4 {[%clk 0:00:04.5]} 67. Rg1 {[%clk 0:00:03.7]} 67... Rc2
{[%clk 0:00:05]} 68. Rg2 {[%clk 0:00:03.9]} 68... Rxc4 {[%clk 0:00:04.3]} 69.
bxc4 {[%clk 0:00:03.1]} 69... Kxc4 {[%clk 0:00:05.2]} 70. Rd2 {[%clk 0:00:03.6]}
70... Bd4 {[%clk 0:00:05.8]} 71. Kg2 {[%clk 0:00:02.2]} 71... Kxd5 {[%clk
0:00:06.7]} 72. Kf3 {[%clk 0:00:02.7]} 72... Ke5 {[%clk 0:00:07.4]} 73. Kg4
{[%clk 0:00:02.6]} 73... Ke4 {[%clk 0:00:07.6]} 74. Re2+ {[%clk 0:00:03.5]}
74... Kd3 {[%clk 0:00:08.2]} 75. Kf3 {[%clk 0:00:03.3]} 75... d5 {[%clk
0:00:08.4]} 76. Re6 {[%clk 0:00:02.5]} 76... c4 {[%clk 0:00:09]} 77. Rd6 {[%clk
0:00:03.4]} 77... c3 {[%clk 0:00:07.5]} 78. Rxd5 {[%clk 0:00:04.3]} 78... c2
{[%clk 0:00:08.1]} 79. Rd8 {[%clk 0:00:05.2]} 79... c1=Q {[%clk 0:00:07.6]} 80.
Rc8 {[%clk 0:00:06.1]} 80... Qxc8 {[%clk 0:00:07.6]} 81. Kf4 {[%clk 0:00:06]}
81... Qf8+ {[%clk 0:00:08.1]} 82. Kg4 {[%clk 0:00:05.8]} 82... Qg7+ {[%clk
0:00:08.5]} 83. Kf5 {[%clk 0:00:05.6]} 83... Qf6+ {[%clk 0:00:08.8]} 84. Kg4
{[%clk 0:00:04.8]} 84... Ke4 {[%clk 0:00:09.5]} 85. Kg3 {[%clk 0:00:03.2]} 85...
Qg5+ {[%clk 0:00:09.3]} 0-1